bitfinex-derivatives/quotes_ETHF0:USTF0_20250828
["timestamp","ask_amount","ask_price","bid_price","bid_amount"]
[1756357465142,18.985,4582.3,4582.2,3.2078]
[1756357465838,1.48,4582.3,4582.2,3.7932]
[1756357466038,21.4136,4582.3,4582.2,4.8604]
[1756357466642,1.0606,4582.3,4582.2,4.8604]
[1756357466839,0.8987,4582.6,4582.5,2.04537]
[1756357468243,1.0863,4582.6,4582.5,2.04537]
[1756357468545,1.2201,4582.6,4582.5,2.04537]
[1756357469342,31.438,4583.6,4582.8,0.6644]
[1756357469543,31.438,4583.6,4583.5,0.39268]
[1756357469745,52.6867,4583.6,4583.5,2.04528]
[1756357469944,52.8743,4583.6,4583.5,2.04528]
[1756357470145,53.0081,4583.6,4583.5,2.04528]
[1756357471650,32.6581,4583.6,4583.5,2.04528]
[1756357471851,53.0071,4583.6,4583.5,2.04528]
[1756357472051,32.5243,4583.6,4583.5,2.04528]
[1756357472252,52.6847,4583.6,4583.5,2.04528]
[1756357473046,0.8987,4583.6,4583.5,2.04528]
[1756357473249,1.0325,4583.9,4583.8,0.85786]
[1756357473453,0.4866,4583.9,4583.8,5.25306]
[1756357473845,0.6204,4584.4,4584.3,0.85781]
[1756357474042,17.3691,4584.4,4584.3,5.25301]
[1756357474451,17.6549,4584.4,4584.3,5.25301]
[1756357474862,21.8519,4584.4,4584.3,5.25301]
[1756357475257,0.6742,4584.8,4584.7,0.39258]
[1756357475464,21.8509,4584.8,4584.7,0.39258]
[1756357475659,1.0863,4584.8,4584.7,2.04518]
[1756357475859,1.2201,4584.8,4584.7,2.04518]
[1756357476063,1.5059,4584.8,4584.7,1.64238]
[1756357477466,1.5059,4584.8,4584.7,1.37698]
[1756357478160,1.5059,4584.8,4584.6,0.39258]
[1756357478358,1.0938,4584.7,4584.6,0.39258]
[1756357478663,1.5059,4584.7,4584.6,1.64238]
[1756357478864,1.5059,4584.7,4584.6,2.04518]
[1756357480162,0.4866,4585.2,4585.1,1.64614]
[1756357480362,21.8459,4585.2,4585.1,0.9844]
[1756357480763,21.8459,4585.2,4585.1,0.4807]
[1756357481061,1.5059,4585.1,4585.0,3.2078]
[1756357481564,1.5059,4585.1,4585.0,4.4576]
[1756357481772,13.3999,4585.1,4585.0,4.8604]
[1756357482267,13.3999,4585.1,4585.0,3.4887]
[1756357482468,13.3999,4585.1,4585.0,3.2078]
[1756357482666,13.3999,4585.1,4585.0,3.7932]
[1756357482856,13.3999,4585.1,4585.0,3.4887]
[1756357483060,1.5059,4585.1,4585.0,4.4576]
[1756357483258,13.3979,4585.1,4585.0,4.8604]
[1756357486564,0.4121,4585.4,4585.0,3.2078]
[1756357486762,0.4866,4586.2,4586.1,0.39246]
[1756357486960,21.0082,4586.2,4586.1,2.04506]
[1756357487271,21.0082,4586.2,4585.8,0.5854]
[1756357487466,0.473,4585.7,4585.6,4.1857]
[1756357487669,1.5059,4585.7,4585.6,4.5847]
[1756357487865,1.5059,4585.7,4585.6,5.2529]
[1756357488067,1.2201,4585.7,4585.6,5.2529]
[1756357488268,1.0863,4585.7,4585.6,5.2529]
[1756357488468,0.8987,4585.7,4585.6,5.2529]
[1756357488766,0.8987,4586.0,4585.9,2.04507]
[1756357489071,1.2201,4586.0,4585.9,1.6526]
[1756357489264,1.5059,4586.0,4585.9,1.2498]
[1756357489660,1.5059,4586.0,4585.9,0.9844]
[1756357491270,1.5059,4586.0,4585.6,3.6106]
[1756357491271,0.6742,4585.7,4585.6,0.5854]
[1756357491471,1.5136,4585.7,4585.6,0.5854]
[1756357493468,1.5136,4585.7,4585.6,1.0395]
[1756357493674,1.2221,4585.7,4585.6,1.644]
[1756357493975,1.0884,4585.7,4585.6,1.644]
[1756357494266,21.2288,4585.7,4585.6,1.644]
[1756357494468,1.5113,4586.1,4586.0,1.6321]
[1756357494773,21.8383,4586.1,4586.0,1.6321]
[1756357495071,1.321,4585.9,4585.8,1.3423]
[1756357495278,21.5468,4585.9,4585.8,1.6321]
[1756357496776,21.5458,4585.9,4585.8,1.6321]
[1756357497768,1.2198,4585.9,4585.8,1.6321]
[1756357497974,21.5448,4585.9,4585.8,1.6321]
[1756357498565,0.28120324,4586.4,4586.3,1.6321]
[1756357498773,0.1705,4587.0,4586.9,2.02449]
[1756357498967,0.1705,4587.5,4587.4,0.6574]
[1756357499175,20.4945,4587.5,4587.4,2.02444]
[1756357499370,0.1066,4588.6,4587.7,0.6574]
[1756357499580,20.4945,4588.0,4587.9,0.6574]
[1756357499779,20.6011,4588.0,4587.9,0.2898]
[1756357499978,0.1705,4587.6,4587.5,0.96583]
[1756357500180,0.1705,4587.6,4587.5,0.2898]
[1756357500478,0.1705,4587.2,4587.1,1.2309]
[1756357500672,0.1705,4587.8,4587.7,0.39232]
[1756357500877,20.4935,4587.8,4587.7,2.02442]
[1756357501078,3.2078,4588.3,4587.7,2.02442]
[1756357501375,20.4925,4588.0,4587.9,0.5562]
[1756357501575,0.1705,4588.0,4587.9,2.0244]
[1756357501981,0.1705,4588.6,4588.5,1.2309]
[1756357502177,0.1705,4588.0,4587.9,0.2898]
[1756357502377,1.46868028,4588.7,4587.8,3.2078]
[1756357502582,0.1705,4588.1,4588.0,1.4509]
[1756357502776,0.1705,4588.1,4588.0,1.7407]
[1756357502975,0.1705,4588.7,4588.6,0.78325]
[1756357503175,0.1705,4588.7,4588.6,2.02435]
[1756357503371,0.17420903,4589.0,4588.9,1.6321]
[1756357503572,0.1066,4588.9,4588.6,0.2837]
[1756357503773,0.1705,4588.7,4588.6,1.2309]
[1756357504079,0.2771,4588.7,4588.6,0.2898]
[1756357504276,0.2771,4588.7,4588.6,0.6574]
[1756357504277,0.1705,4588.7,4588.6,0.6574]
[1756357504574,0.1705,4588.7,4587.2,3.2078]
[1756357504575,0.1066,4587.8,4587.2,3.2078]
[1756357504776,1.36578931,4589.0,4586.7,1.15191]
[1756357504777,0.2771,4587.3,4586.7,1.15191]
[1756357504982,0.1705,4586.8,4586.7,1.0586]
[1756357505178,3.3144,4587.6,4586.7,0.6574]
[1756357505385,13.611,4587.5,4587.4,1.0586]
[1756357505580,0.00370903,4589.0,4588.9,0.6574]
[1756357505775,0.00370903,4589.0,4588.9,1.6321]
[1756357505979,0.00370903,4589.0,4588.9,46.4321]
[1756357506179,23.8071,4590.2,4590.1,1.6321]
[1756357506583,0.1066,4589.6,4589.3,0.2898]
[1756357506786,0.1803,4589.4,4589.3,1.6321]
[1756357507089,0.1765,4589.4,4589.3,1.6321]
[1756357507273,0.0038,4589.3,4588.9,41.0898]
[1756357507478,0.1803,4588.1,4588.0,0.2837]
[1756357507782,0.0032,4588.0,4587.5,0.2837]
[1756357507980,0.0032,4588.0,4587.2,0.4012]
[1756357507981,20.3422,4587.9,4587.2,0.4012]
[1756357508280,20.3422,4587.9,4586.1,40.8]
[1756357508281,20.338,4588.1,4587.6,3.2078]
[1756357508482,20.338,4588.1,4587.8,0.4012]
[1756357508673,20.338,4588.1,4587.7,0.5735]
[1756357508982,0.0032,4587.9,4586.8,0.691]
[1756357509186,20.3502,4587.8,4587.2,0.2837]
[1756357509386,0.0032,4587.7,4586.9,0.9747]
[1756357509580,0.0032,4587.7,4586.0,4.02609962]
[1756357509581,0.0032,4587.1,4586.5,0.2898]
[1756357509886,0.0032,4586.9,4586.0,0.2898]
[1756357510080,0.0032,4586.7,4586.0,0.2898]
[1756357510387,3.988,4586.6,4586.5,0.9747]
[1756357510580,6.858,4587.6,4587.1,0.39238]
[1756357510780,6.858,4587.6,4587.0,0.2898]
[1756357510978,0.0032,4587.4,4586.4,0.9747]
[1756357511175,6.858,4587.6,4584.8,0.98144]
[1756357511176,3.2078,4586.9,4586.0,0.2898]
[1756357511380,0.106,4586.7,4586.0,0.2898]
[1756357511672,0.0032,4586.2,4585.4,0.2898]
[1756357511883,0.1092,4585.8,4584.8,0.2837]
[1756357512079,0.106,4585.0,4584.2,0.2898]
[1756357512276,0.106,4585.0,4583.9,3.4915]
[1756357512277,0.0032,4584.5,4583.4,3.2078]
[1756357512480,3.2078,4583.6,4583.3,0.2898]
[1756357512691,0.0032,4583.5,4583.2,0.2898]
[1756357512882,3.2078,4583.6,4582.9,0.2898]
[1756357512883,20.431,4583.4,4582.9,0.2898]
[1756357513089,20.431,4583.4,4581.9,0.2898]
[1756357513090,0.106,4582.9,4581.9,0.2898]
[1756357513292,0.0032,4582.3,4581.6,0.96634]
[1756357513483,20.193,4582.2,4581.6,0.5735]
[1756357513794,0.0032,4581.8,4580.9,0.2898]
[1756357513992,3.2078,4581.1,4580.4,0.2837]
[1756357514185,20.446,4581.0,4580.4,0.2837]
[1756357514378,0.0032,4580.4,4580.2,0.2898]
[1756357514583,0.0032,4580.2,4579.9,0.2837]
[1756357514785,3.2078,4580.1,4579.4,40.8]
[1756357514984,0.0032,4580.0,4579.3,3.4976]
[1756357515180,0.0032,4579.5,4578.8,0.2898]
[1756357515379,20.457,4579.4,4578.8,0.2898]
[1756357515585,0.0032,4579.2,4578.6,3.2078]
[1756357515802,3.2078,4579.1,4578.3,0.2898]
[1756357516089,20.465,4579.0,4578.6,0.2837]
[1756357516288,20.465,4579.1,4579.0,0.2837]
[1756357516489,20.465,4579.1,4579.0,0.9747]
[1756357516689,0.0032,4579.7,4579.0,0.9747]
[1756357516988,8.296,4580.1,4579.6,0.9747]
[1756357517196,8.296,4580.1,4579.2,0.2898]
[1756357517383,3.2078,4580.4,4579.8,0.2837]
[1756357517584,3.2078,4580.4,4580.3,0.6849]
[1756357517796,4.59887946,4582.4,4580.2,0.39296]
[1756357517797,20.465,4580.6,4580.2,0.39296]
[1756357517993,0.0032,4580.4,4579.8,3.2078]
[1756357518192,3.2078,4580.2,4579.3,0.2898]
[1756357518395,20.487,4580.1,4579.3,0.39304]
[1756357518587,20.487,4580.1,4579.5,0.2898]
[1756357518788,34.6148,4580.7,4580.0,0.4012]
[1756357518989,20.493,4580.6,4580.3,0.39295]
[1756357519190,31.407,4580.7,4580.6,0.9747]
[1756357519496,3.2078,4581.2,4581.0,0.9747]
[1756357519692,20.5,4581.5,4581.4,0.39286]
[1756357519997,0.0032,4581.3,4580.4,0.2898]
[1756357520196,3.2078,4581.0,4580.4,0.2898]
[1756357520494,0.106,4581.1,4578.9,9.82691]
[1756357520495,3.2078,4581.5,4581.4,0.96636]
[1756357520804,3.2078,4581.5,4581.4,1.36756]
[1756357521092,0.0032,4581.2,4581.0,0.3929]
[1756357521295,0.0032,4581.2,4580.5,3.2078]
[1756357521490,0.0039,4580.8,4580.1,0.39297]
[1756357521687,0.1106,4580.9,4579.8,3.492]
[1756357521893,3.2078,4581.0,4580.7,0.39292]
[1756357522098,11.0,4581.1,4580.9,0.69191]
[1756357522293,0.0039,4581.0,4580.6,0.39293]
[1756357522494,11.0,4581.1,4579.5,0.299]
[1756357522688,0.1067,4580.9,4580.0,3.2078]
[1756357522897,0.0039,4580.8,4580.7,0.39292]
[1756357523197,11.092,4580.8,4580.2,0.5832]
[1756357523397,11.092,4580.8,4580.0,3.2078]
[1756357523398,0.1067,4580.6,4580.0,3.2078]
[1756357523595,11.092,4580.8,4580.0,3.2078]
[1756357523795,0.1067,4580.8,4580.2,0.69197]
[1756357524099,0.1067,4580.8,4580.4,0.2842]
[1756357524397,0.0039,4580.9,4580.1,0.4014]
[1756357524596,0.0039,4581.4,4581.1,0.39289]
[1756357524797,11.203,4581.3,4581.2,0.9846]
[1756357525096,3.2078,4581.5,4581.4,0.9846]
[1756357525300,0.0039,4581.9,4581.6,0.5832]
[1756357525605,0.0039,4582.3,4581.9,0.39282]
[1756357525794,20.597,4582.2,4582.0,0.2842]
[1756357525994,20.597,4582.2,4581.7,3.5068]
[1756357526190,20.597,4582.2,4581.9,0.2842]
[1756357526191,0.0039,4582.1,4581.9,0.2842]
[1756357526398,20.593,4582.0,4581.9,0.39282]
[1756357526592,20.593,4582.0,4581.9,1.37742]
[1756357527088,31.424,4582.4,4582.3,0.2842]
[1756357527292,52.013,4582.4,4582.3,0.9846]
[1756357527896,52.013,4582.4,4582.3,0.5832]
[1756357528101,52.009,4582.4,4582.3,0.5832]
[1756357528299,52.009,4582.4,4582.3,0.2842]
[1756357528496,31.424,4582.4,4582.3,0.67699]
[1756357528704,52.0299,4582.4,4582.3,0.67699]
[1756357529600,52.026,4582.4,4581.8,0.299]
[1756357529799,0.0039,4582.3,4581.8,0.299]
[1756357530001,0.0039,4582.1,4581.7,3.492]
[1756357530303,0.1067,4582.2,4581.7,3.2078]
[1756357530500,0.0039,4582.0,4581.8,0.67702]
[1756357530800,0.0039,4582.3,4582.2,0.67699]
[1756357531002,31.424,4582.4,4582.3,0.5832]
[1756357531196,52.02,4582.4,4582.3,0.5832]
[1756357531503,52.02,4582.4,4581.7,3.2078]
[1756357531697,0.1098,4582.3,4581.7,3.2078]
[1756357532197,31.424,4582.4,4582.3,0.9846]
[1756357532600,52.0205,4582.4,4582.1,0.3928]
[1756357532799,0.0035,4582.3,4582.2,0.67699]
[1756357532998,52.017,4582.4,4582.2,0.97599]
[1756357533195,20.6105,4582.3,4581.7,3.2078]
[1756357533400,20.607,4582.3,4582.2,0.9846]
[1756357533599,31.424,4582.4,4582.3,0.39279]
[1756357533799,52.028,4582.4,4582.3,1.37739]
[1756357533999,3.2078,4583.9,4583.8,0.2842]
[1756357534200,23.8233,4583.9,4583.8,0.2842]
[1756357534400,23.8233,4583.9,4583.3,0.2842]
[1756357534599,23.8233,4583.9,4583.2,0.7004]
[1756357534600,23.8198,4583.9,4583.2,0.7004]
[1756357534804,0.0035,4583.8,4583.1,0.2842]
[1756357535309,23.8198,4583.9,4583.1,0.2842]
[1756357535509,0.0035,4583.8,4583.4,0.39269]
[1756357535706,23.8198,4583.9,4583.1,0.67691]
[1756357535905,0.1063,4583.8,4582.7,0.299]
[1756357536207,0.0035,4583.7,4583.1,0.39272]
[1756357536405,3.2078,4583.4,4582.5,0.39277]
[1756357536605,20.599,4583.3,4582.2,0.2842]
[1756357536911,0.0035,4583.1,4582.4,0.67697]
[1756357537110,20.598,4583.2,4582.4,0.67697]
[1756357537307,0.0035,4583.1,4582.4,0.2842]
[1756357537515,0.0035,4582.9,4582.2,0.39279]
[1756357537705,0.1063,4583.0,4582.2,0.39279]
[1756357538104,0.0035,4582.7,4582.1,0.3928]
[1756357538318,0.0035,4582.4,4582.1,0.677]
[1756357538699,0.1063,4582.5,4582.2,0.2842]
[1756357539110,0.5576392,4582.4,4582.3,0.5832]
[1756357539305,21.1436392,4582.4,4582.3,0.9846]
[1756357539810,21.14711404,4582.4,4582.3,0.5832]
[1756357540010,20.5895,4582.4,4582.3,0.5832]
[1756357540210,21.14783869,4582.4,4582.3,0.5832]
[1756357540910,21.14433869,4582.4,4582.3,0.9846]
[1756357541108,21.13633869,4582.4,4582.3,0.9846]
[1756357541304,0.55833869,4582.4,4582.3,4.9846]
[1756357541503,0.3673,4583.9,4583.7,0.299]
[1756357541706,0.3708,4583.9,4583.8,0.2842]
[1756357541911,20.9538,4583.9,4583.8,0.2842]
[1756357542411,20.9538,4583.9,4583.3,0.4014]
[1756357542412,0.3673,4583.6,4583.3,0.3927]
[1756357542609,0.3708,4583.2,4583.1,3.2078]
[1756357542809,21.0541,4583.2,4583.1,3.2078]
[1756357543004,20.576,4583.2,4583.1,4.1924]
[1756357543204,0.0035,4583.7,4583.1,4.58511]
[1756357543405,20.583,4583.6,4583.2,0.6769]
[1756357543613,20.583,4583.6,4583.4,0.2842]
[1756357543810,0.3673,4583.5,4583.4,0.5832]
[1756357544017,0.3673,4583.5,4583.4,0.9846]
[1756357544216,0.3708,4583.5,4583.4,0.5832]
[1756357544416,0.3708,4583.5,4583.4,0.2842]
[1756357544723,0.3708,4583.5,4582.8,0.4014]
[1756357544724,0.21818,4583.4,4581.6,3.2078]
[1756357545016,3.2078,4582.1,4581.4,0.2842]
[1756357545212,47.196,4582.0,4581.4,0.2842]
[1756357546211,31.434,4582.0,4581.3,0.39286]
[1756357546416,20.693,4581.9,4581.2,0.9846]
[1756357546715,20.693,4581.9,4581.3,0.2842]
[1756357548317,22.27127804,4581.9,4581.3,0.2842]
[1756357548505,20.687,4581.8,4581.1,3.2078]
[1756357548707,20.687,4581.7,4581.4,0.2842]
[1756357549017,20.687,4581.7,4581.2,0.4014]
[1756357549018,20.687,4581.7,4581.3,0.299]
[1756357549216,33.01227804,4582.0,4581.9,0.9846]
[1756357549413,52.119,4582.0,4581.9,0.9846]
[1756357549611,52.118,4582.0,4581.9,0.9846]
[1756357550223,52.118,4582.0,4581.9,0.5832]
[1756357551217,52.118,4582.0,4581.3,0.6856]
[1756357551423,20.681,4581.9,4581.4,0.3039]
[1756357551622,20.681,4581.9,4581.6,0.3039]
[1756357551923,20.681,4581.9,4581.6,0.3014]
[1756357552223,20.681,4581.9,4581.2,0.7163]
[1756357552523,20.69,4581.8,4581.2,1.0177]
[1756357552725,20.69,4581.8,4581.3,0.3039]
[1756357552910,20.69,4581.8,4581.7,0.3039]
[1756357553327,20.69,4581.8,4581.1,44.3092]
[1756357553518,0.55934704,4581.7,4581.1,44.6131]
[1756357553727,0.55934704,4581.6,4581.1,44.3092]
[1756357554027,0.55934704,4581.5,4581.1,44.3092]
[1756357554323,21.24234704,4581.4,4581.1,3.5092]
[1756357554530,0.55934704,4581.3,4581.2,0.6053]
[1756357554819,0.55934704,4581.3,4581.2,1.0177]
[1756357555026,21.23334704,4581.3,4581.2,1.0177]
[1756357556927,21.21634704,4581.3,4581.2,1.0177]
[1756357557532,21.21634704,4581.3,4581.2,0.6053]
[1756357558232,21.20734704,4581.3,4581.2,1.0177]
[1756357559026,21.20734704,4581.3,4581.2,0.6053]
[1756357559225,0.55934704,4581.3,4581.2,0.6053]
[1756357559427,21.19734704,4581.3,4581.2,1.0177]
[1756357559828,21.19734704,4581.3,4581.2,0.6053]
[1756357560532,21.19034704,4581.3,4581.2,1.0177]
[1756357560737,21.19034704,4581.3,4580.6,0.6053]
[1756357560925,0.55934704,4581.2,4580.6,0.3039]
[1756357561126,0.55934704,4581.1,4580.4,3.2078]
[1756357561326,0.55934704,4581.0,4580.4,3.2078]
[1756357561633,21.18634704,4580.9,4580.4,3.2078]
[1756357561833,0.55934704,4580.8,4580.4,3.2078]
[1756357562037,21.18434704,4580.7,4580.6,0.6053]
[1756357562227,21.18434704,4580.7,4580.6,1.0177]
[1756357562731,21.17734704,4580.7,4580.6,1.0177]
[1756357562927,25.17734704,4580.7,4579.5,0.3039]
[1756357563128,3.2078,4580.4,4579.5,0.3039]
[1756357563429,0.55934704,4580.3,4579.5,0.3039]
[1756357563634,0.55934704,4580.2,4579.5,0.3039]
[1756357563834,21.34734704,4580.1,4579.5,0.3039]
[1756357564033,0.55934704,4580.0,4579.1,0.39305]
[1756357564230,20.788,4580.1,4579.3,0.4124]
[1756357564231,0.55934704,4579.9,4579.3,0.4124]
[1756357564429,0.55934704,4579.8,4579.6,0.4124]
[1756357564632,0.55653189,4579.7,4579.6,0.3039]
[1756357565639,0.55653189,4579.7,4579.6,0.6053]
[1756357566031,0.55653189,4579.7,4579.6,1.0177]
[1756357566239,31.443,4580.3,4579.7,0.3039]
[1756357566432,0.55637598,4580.2,4579.2,40.8]
[1756357566733,0.55637598,4580.1,4579.9,0.3014]
[1756357567037,31.443,4580.3,4580.2,1.0177]
[1756357567236,52.225,4580.3,4580.2,1.0177]
[1756357567437,31.443,4580.3,4580.2,1.0177]
[1756357567637,52.224,4580.3,4580.2,8.2255]
[1756357567835,3.2078,4581.5,4580.4,0.39294]
[1756357568034,4.03840112,4581.2,4580.5,0.3039]
[1756357568233,7.265,4581.4,4580.6,1.0177]
[1756357568437,7.265,4581.4,4580.7,0.3039]
[1756357568838,0.55628896,4581.3,4580.7,0.3039]
[1756357569038,7.265,4581.4,4580.7,0.3039]
[1756357569240,20.774,4581.3,4580.7,0.3039]
[1756357569440,3.2078,4581.5,4580.7,0.3039]
[1756357569642,21.32931468,4581.4,4580.7,0.3039]
[1756357569841,3.2078,4581.5,4580.7,0.3039]
[1756357570135,3.2078,4581.0,4580.2,0.3039]
[1756357570341,20.768,4580.9,4580.2,0.3039]
[1756357570538,20.766,4580.8,4580.2,0.3039]
[1756357570933,20.766,4580.8,4580.1,0.3014]
[1756357571140,20.766,4580.8,4580.1,0.3039]
[1756357571741,3.2078,4580.4,4579.6,3.5117]
[1756357571936,20.76,4580.3,4579.6,3.5117]
[1756357572239,4.03840112,4580.0,4579.6,3.2078]
[1756357572434,35.48440112,4580.0,4579.6,3.2078]
[1756357572641,35.48440112,4580.0,4579.1,3.5117]
[1756357572843,3.2078,4579.9,4579.1,0.3039]
[1756357573145,20.758,4579.8,4579.1,0.3039]
[1756357574432,20.746,4579.7,4579.1,0.3039]
[1756357574633,20.743,4579.6,4579.4,0.3039]
[1756357574839,20.743,4579.6,4579.5,1.0177]
[1756357575038,20.743,4579.6,4579.5,0.3039]
[1756357575243,20.743,4579.6,4579.5,0.6053]
[1756357575447,20.743,4579.6,4579.5,0.3039]
[1756357575645,3.2078,4579.9,4579.2,0.3039]
[1756357575942,20.743,4579.8,4579.2,0.3039]
[1756357577239,20.741,4579.7,4579.2,0.3039]
[1756357577439,20.741,4579.7,4578.7,1.0177]
[1756357577640,20.741,4579.7,4578.8,0.6053]
[1756357577840,20.741,4579.7,4578.9,0.3039]
[1756357581243,0.0011,4579.0,4578.9,0.7993]
[1756357581448,20.7042,4579.0,4578.9,1.6745]
[1756357581940,20.701,4579.0,4578.9,1.6745]
[1756357582943,3.2078,4579.9,4578.9,1.6745]
[1756357583144,20.6917,4579.8,4579.7,1.6655]
[1756357583849,23.8995,4579.8,4579.7,1.2736]
[1756357584542,23.8995,4579.8,4579.1,0.2977]
[1756357584747,0.0047,4579.2,4579.1,0.2977]
[1756357584949,20.6787,4579.2,4579.1,1.3674]
[1756357585150,3.2078,4579.8,4579.1,1.3674]
[1756357585444,3.2078,4579.8,4579.2,0.6896]
[1756357585652,0.0037,4579.5,4579.4,0.7874]
[1756357585843,0.0047,4579.5,4579.4,1.6655]
[1756357586043,0.0021,4579.5,4579.4,1.6655]
[1756357586347,0.0021,4579.6,4579.5,1.6655]
[1756357586644,20.6761,4579.6,4579.5,1.6655]
[1756357586851,20.6787,4579.6,4579.5,1.2736]
[1756357587752,20.6787,4579.6,4579.5,0.2981]
[1756357587953,0.0047,4579.6,4579.5,1.6655]
[1756357588152,20.6617,4579.6,4579.5,1.6655]
[1756357588645,20.6617,4579.6,4579.5,0.2981]
[1756357589139,20.6617,4579.6,4579.5,0.7874]
[1756357589341,20.6617,4579.6,4579.5,0.2981]
[1756357589744,0.0047,4579.6,4579.5,1.0737]
[1756357589951,20.6467,4579.6,4579.5,1.2736]
[1756357590354,20.6467,4579.6,4579.5,0.2981]
[1756357590857,20.6431,4579.6,4579.0,0.5958]
[1756357591155,0.0047,4579.1,4579.0,1.2736]
[1756357591344,0.0047,4579.1,4579.0,1.6655]
[1756357592254,20.629,4579.7,4579.2,0.2981]
[1756357592448,0.0047,4579.4,4579.3,1.082]
[1756357593052,0.0047,4579.4,4579.3,0.2981]
[1756357593259,0.0047,4579.4,4579.3,1.6655]
[1756357593752,20.6207,4579.4,4579.3,0.2981]
[1756357594252,20.6167,4579.4,4579.3,0.5958]
[1756357594448,20.6167,4579.4,4579.3,0.2981]
[1756357595147,3.2078,4579.8,4579.3,1.2736]
[1756357595352,3.2088,4580.4,4580.3,0.6778]
[1756357595649,23.8139,4580.4,4580.3,1.6655]
[1756357595851,3.2088,4581.1,4581.0,1.6655]
[1756357596045,23.8178,4581.1,4581.0,0.9877]
[1756357596349,31.454,4581.5,4581.1,0.69]
[1756357596557,20.612,4581.4,4581.3,0.9877]
[1756357596747,20.612,4581.4,4581.3,0.2981]
[1756357597148,20.622,4581.4,4581.3,0.9877]
[1756357597955,20.622,4581.4,4581.3,0.2981]
[1756357598368,0.001,4581.3,4581.0,0.2981]
[1756357598651,20.621,4581.4,4580.6,0.2981]
[1756357598848,0.001,4581.4,4580.6,0.2981]
[1756357599048,0.001,4581.2,4580.6,0.2981]
[1756357599248,20.633,4581.3,4580.6,0.2981]
[1756357599748,0.001,4581.2,4580.6,0.2981]
[1756357600058,20.633,4581.3,4580.6,0.2981]
[1756357600353,0.001,4581.2,4580.6,0.2981]
[1756357600553,0.001,4581.2,4580.7,0.6896]
[1756357600754,20.625,4581.1,4580.5,0.9877]
[1756357600957,20.625,4581.1,4580.6,0.2981]
[1756357601156,20.625,4581.1,4580.7,0.3919]
[1756357601456,0.0047,4581.0,4580.9,0.2981]
[1756357601755,0.0047,4580.5,4580.4,3.5059]
[1756357601949,20.6287,4580.5,4579.9,0.3919]
[1756357602150,0.0047,4580.0,4579.9,1.1793]
[1756357602355,20.6257,4580.0,4579.9,1.1793]
[1756357602553,20.6257,4580.0,4579.9,1.6655]
[1756357602947,20.6257,4580.0,4579.9,0.2981]
[1756357603148,20.6257,4580.0,4579.9,0.7874]
[1756357603456,20.6257,4580.0,4579.9,1.2736]
[1756357603655,20.6257,4580.0,4579.7,0.2981]
[1756357603656,0.001,4579.9,4579.7,0.2981]
[1756357603952,0.001,4579.9,4579.2,0.2981]
[1756357604453,0.001,4579.9,4579.4,0.2981]
[1756357604649,3.2078,4580.1,4579.7,0.9877]
[1756357604650,20.622,4579.8,4579.7,0.9877]
[1756357605052,20.617,4579.9,4579.8,0.2977]
[1756357605255,20.617,4579.9,4579.8,0.9877]
[1756357605554,20.618,4579.9,4579.8,0.9877]
[1756357606356,20.618,4579.9,4579.8,0.5958]
[1756357606655,20.618,4579.9,4579.8,0.9877]
[1756357607053,0.001,4579.8,4579.3,0.2981]
[1756357607252,20.617,4579.9,4579.2,0.2981]
[1756357607454,0.001,4579.8,4579.2,0.2981]
[1756357607950,20.617,4579.9,4579.2,0.69115]
[1756357608155,20.618,4579.9,4579.4,0.2981]
[1756357608457,20.617,4579.9,4579.1,44.0078]
[1756357608754,20.617,4579.9,4579.4,0.3919]
[1756357608958,20.617,4579.9,4579.4,0.39303]
[1756357609162,20.617,4579.9,4579.5,0.9877]
[1756357609355,20.618,4579.9,4579.5,0.98882]
[1756357609555,20.618,4579.9,4579.3,0.3919]
[1756357609754,20.617,4579.9,4579.5,0.3919]
[1756357609954,20.617,4579.9,4579.7,0.2981]
[1756357610255,20.606,4579.8,4579.3,0.3919]
[1756357610451,3.2078,4580.1,4579.6,0.3919]
[1756357610652,20.598,4580.0,4579.9,0.2981]
[1756357610856,20.598,4580.0,4579.9,0.9877]
[1756357611254,20.599,4580.0,4579.9,0.5958]
[1756357611458,20.599,4580.0,4579.9,0.2981]
[1756357611760,20.599,4580.0,4579.9,0.5997]
[1756357612454,20.599,4580.0,4579.9,1.0193]
[1756357612761,0.001,4580.0,4579.9,1.0193]
[1756357612959,20.603,4580.0,4579.9,1.0193]
[1756357613761,20.594,4580.0,4579.9,1.6726]
[1756357614155,0.001,4580.0,4579.9,1.6726]
[1756357614357,20.587,4580.0,4579.9,1.6726]
[1756357614662,20.58,4580.0,4579.9,1.6726]
[1756357614862,20.58,4580.0,4579.9,0.7913]
[1756357615554,20.58,4580.0,4579.9,1.6726]
[1756357617657,20.58,4580.0,4579.9,0.4897]
[1756357617864,20.58,4580.0,4579.9,1.6674]
[1756357618062,20.58,4580.0,4579.9,1.2478]
[1756357619062,20.58,4580.0,4579.9,0.4845]
[1756357619251,20.58,4580.0,4579.9,0.2981]
[1756357620362,20.58,4580.0,4579.9,0.7861]
[1756357621967,20.58,4580.0,4579.9,1.2478]
[1756357622364,20.58,4580.0,4579.9,0.9462]